bitfinex/quotes_ETHUSD_20260110
["timestamp","ask_amount","ask_price","bid_price","bid_amount"]
[1768020594699,0.001,3084.1,3083.6,3.2429137]
[1768020595137,0.001,3084.1,3083.7,3.24283157]
[1768020597538,0.001,3084.1,3083.6,3.24296277]
[1768020598937,0.001,3084.1,3083.7,0.91638492]
[1768020601038,0.001,3084.1,3083.8,0.91638492]
[1768020601938,0.001,3084.4,3083.8,0.94881244]
[1768020602441,0.001,3084.4,3083.8,0.91638492]
[1768020602599,0.001,3084.4,3083.9,1.17138492]
[1768020602914,0.0008092,3084.8,3084.1,0.91638492]
[1768020605335,0.96372965,3084.8,3084.1,3.27484974]
[1768020606345,0.96372965,3084.8,3084.0,7.57291889]
[1768020606503,0.96372965,3084.8,3084.1,0.03242437]
[1768020608943,0.96292045,3085.0,3084.4,0.00080928]
[1768020609240,0.001,3084.5,3084.4,0.00080928]
[1768020609443,0.96292045,3085.0,3084.4,0.00080928]
[1768020610048,0.96292045,3085.4,3084.6,5.28871983]
[1768020611912,0.96292045,3085.4,3084.6,4.33042402]
[1768020613839,0.96292045,3085.4,3084.6,4.36284313]
[1768020615113,0.96292045,3085.8,3084.7,0.95829581]
[1768020615314,0.96292045,3085.8,3084.8,0.03241701]
[1768020615532,0.96292045,3085.7,3084.7,0.95829581]
[1768020616114,0.96292045,3085.7,3084.4,0.25580928]
[1768020616115,0.96292045,3085.4,3084.4,0.00080928]
[1768020617138,0.96292045,3085.2,3084.4,0.00080928]
[1768020617451,0.96292045,3085.1,3084.4,0.00080928]
[1768020617618,0.96292045,3084.9,3084.4,0.00080928]
[1768020618435,0.96292045,3084.7,3083.9,0.255]
[1768020619927,0.96292045,3084.5,3083.9,0.255]
[1768020620624,0.96292045,3084.5,3083.5,0.95910317]
[1768020620833,0.96292045,3084.5,3083.5,1.21410317]
[1768020621058,0.96292045,3084.5,3084.4,0.002]
[1768020621255,0.96292045,3084.5,3083.6,0.95829581]
[1768020621435,0.96292045,3084.5,3084.0,0.002]
[1768020622157,0.96292045,3084.3,3084.0,0.002]
[1768020622734,0.96292045,3084.3,3083.5,0.25580736]
[1768020625464,0.96292045,3084.3,3083.5,1.21410317]
[1768020632265,0.96292045,3084.3,3083.6,0.95829581]
[1768020633187,0.96292045,3084.3,3083.8,0.002]
[1768020633394,0.001,3084.2,3083.8,0.002]
[1768020639975,0.90508838,3084.2,3083.8,0.002]
[1768020643546,0.001,3084.2,3083.8,0.002]
[1768020653385,0.001,3084.2,3083.8,0.96567504]
[1768020662902,0.001,3084.2,3083.8,0.002]
[1768020670205,0.95387801,3084.2,3083.8,0.002]
[1768020670405,1.80661273,3084.2,3083.8,0.002]
[1768020671276,0.95387801,3084.2,3083.8,0.002]
[1768020677911,0.001,3084.2,3083.8,0.002]
[1768020679912,5.28517904,3084.2,3083.8,0.002]
[1768020680210,8.52759046,3084.2,3083.8,0.002]
[1768020680415,8.52759046,3084.2,3083.5,0.00280736]
[1768020680416,0.95287801,3084.1,3083.5,0.00280736]
[1768020680605,2.1298609,3084.1,3083.5,0.00280736]
[1768020681108,0.95287801,3083.9,3083.5,0.00280736]
[1768020682918,4.58630103,3084.0,3083.5,0.00280736]
[1768020684529,0.255,3084.0,3083.5,0.00280736]
[1768020684835,1.25095418,3084.0,3083.5,0.00280736]
[1768020684991,1.25095418,3084.0,3083.5,0.92711151]
[1768020686395,4.49354022,3084.0,3083.5,0.92711151]
[1768020686600,1.25095418,3084.0,3083.5,0.92711151]
[1768020691517,1.25095418,3084.0,3083.8,0.002]
[1768020691722,0.44933977,3083.9,3083.5,0.92711151]
[1768020695131,4.62625449,3083.9,3083.5,0.00280736]
[1768020695334,0.93423692,3083.8,3083.5,0.00280736]
[1768020696220,3.69201757,3083.9,3083.5,0.00280736]
[1768020696423,0.48812545,3083.8,3083.5,0.00280736]
[1768020700438,0.70433977,3083.9,3083.5,0.00280736]
[1768020703141,0.70433977,3083.9,3083.8,0.002]
[1768020703342,0.70433977,3083.9,3083.5,0.00280736]
[1768020714918,0.70433977,3083.9,3083.8,0.002]
[1768020715142,0.70433977,3083.9,3083.5,0.00280736]
[1768020715959,0.39469151,3083.8,3083.5,0.00280736]
[1768020718431,0.255,3083.9,3083.5,0.00280736]
[1768020719365,0.96167997,3083.8,3083.5,0.00280736]
[1768020723469,0.255,3083.9,3083.5,0.00280736]
[1768020727268,0.255,3083.9,3083.8,0.002]
[1768020727468,0.255,3083.9,3083.5,0.00280736]
[1768020727683,0.69814266,3083.9,3083.5,0.00280736]
[1768020727973,0.69814266,3083.9,3083.5,0.9687145]
[1768020727974,0.255,3083.9,3083.5,0.9687145]
[1768020728268,0.255,3083.9,3083.5,0.00280736]
[1768020732597,0.255,3083.9,3083.5,0.9687145]
[1768020733723,3.24260124,3084.0,3083.5,0.9687145]
[1768020733873,0.001,3084.2,3083.6,0.96590714]
[1768020738711,0.001,3084.2,3083.8,0.96590714]
[1768020739001,0.001,3084.2,3083.8,0.96790714]
[1768020739214,0.001,3083.9,3083.8,0.96790714]
[1768020741211,0.001,3084.2,3083.9,0.96590714]
[1768020749347,0.001,3084.2,3083.8,0.002]
[1768020750015,0.001,3084.2,3083.8,0.96790714]
[1768020750483,0.001,3083.9,3083.8,0.96790714]
[1768020754919,0.001,3083.9,3083.8,0.002]
[1768020760117,0.001,3083.9,3083.8,0.96606153]
[1768020767228,0.001,3084.2,3083.8,0.96606153]
[1768020774153,0.001,3083.9,3083.8,0.96606153]
[1768020775924,0.001,3084.2,3083.8,0.96606153]
[1768020786248,0.001,3083.9,3083.8,0.96606153]
[1768020802574,0.001,3083.9,3083.8,0.002]
[1768020814595,0.001,3083.9,3083.4,0.9400306]
[1768020814596,0.91446124,3083.9,3083.4,0.9400306]
[1768020814903,0.91446124,3083.9,3083.3,0.257]
[1768020815280,0.00180736,3083.9,3083.3,1.18486449]
[1768020815798,0.00180736,3083.9,3083.3,0.257]
[1768020819268,0.56302205,3083.9,3083.3,0.257]
[1768020819469,0.56302205,3083.9,3083.3,0.002]
[1768020819707,0.94177873,3083.8,3083.3,0.002]
[1768020820292,0.001,3083.6,3083.3,0.002]
[1768020829697,0.001,3083.6,3083.3,0.92986449]
[1768020836349,0.00080592,3083.3,3082.9,4.58756565]
[1768020836519,0.00080592,3083.3,3083.0,0.97036935]
[1768020836721,0.001,3083.6,3083.1,0.97036935]
[1768020843853,0.001,3083.6,3083.4,0.002]
[1768020858085,0.91093192,3083.6,3083.4,0.002]
[1768020859162,0.001,3083.6,3083.4,0.002]
[1768020868892,0.91093192,3083.6,3083.4,0.002]
[1768020872462,0.001,3083.6,3083.4,0.002]
[1768020890335,4.33221668,3083.5,3083.4,0.002]
[1768020890513,4.33221668,3083.5,3083.0,0.002]
[1768020890514,5.82744083,3083.5,3083.0,0.002]
[1768020890702,0.001,3083.3,3083.0,0.002]
[1768020902131,0.00180736,3083.9,3083.3,5.29533572]
[1768020902313,0.00180736,3083.9,3083.4,0.96311904]
[1768020907429,0.00180736,3083.9,3083.5,4.33221668]
[1768020910840,0.00180736,3083.9,3083.5,5.29852446]
[1768020911049,0.00180736,3083.9,3083.6,0.96630778]
[1768020914247,0.001,3084.2,3083.6,0.96630778]
[1768020914460,0.255,3084.1,3083.6,0.96630778]
[1768020918153,0.001,3084.2,3083.6,0.96630778]
[1768020920972,0.001,3084.2,3083.7,5.29852446]
[1768020921171,0.001,3084.2,3083.8,0.96630778]
[1768020921671,0.001,3084.2,3083.7,4.33221668]
[1768020922873,0.001,3084.2,3083.6,0.96630778]
[1768020925973,0.001,3083.9,3083.6,0.96630778]
[1768020929157,0.93247803,3084.5,3083.6,0.96630778]
[1768020929471,0.256,3084.6,3083.6,0.96630778]
[1768020929651,1.18847803,3084.6,3083.8,0.96630778]
[1768020932278,0.93347803,3084.6,3083.8,0.96630778]
[1768020932482,0.255,3084.5,3083.8,0.96630778]
[1768020937590,0.001,3084.2,3083.8,0.96630778]
[1768020940080,0.255,3084.4,3083.8,0.96630778]
[1768020944273,0.93347803,3084.6,3083.8,0.96630778]
[1768020944495,0.255,3084.5,3083.8,0.96630778]
[1768020944999,0.93347803,3084.6,3083.8,0.96630778]
[1768020945171,0.255,3084.5,3083.8,0.96630778]
[1768020948594,0.93347803,3084.6,3083.8,0.96630778]
[1768020948795,0.93347803,3084.6,3084.0,0.98255981]
[1768020948796,0.001,3084.6,3084.0,0.98255981]
[1768020948967,0.00080928,3084.8,3084.2,0.98255981]
[1768020956426,0.91583088,3085.1,3084.4,0.00080936]
[1768020956590,3.24120066,3085.3,3084.5,4.33053734]
[1768020956591,0.91583088,3085.3,3084.5,4.33053734]
[1768020956790,7.11362039,3085.7,3084.5,4.33053734]
[1768020956791,0.91583088,3085.1,3084.5,4.33053734]
[1768020957810,0.255,3085.4,3084.6,0.97014828]
[1768020958309,1.17083088,3085.4,3084.6,0.97014828]
[1768020961021,0.91583088,3085.3,3084.6,0.97014828]
[1768020961182,0.91583088,3085.3,3084.4,0.00080936]
[1768020961386,0.91583088,3085.1,3084.5,0.001]
[1768020961603,0.91783088,3085.1,3084.5,0.001]
[1768020962135,0.91783088,3085.1,3084.4,0.00080936]
[1768020962313,0.91583088,3084.7,3084.1,0.002]
[1768020966300,0.00080936,3084.8,3084.1,0.90929736]
[1768020972641,0.00080936,3084.8,3082.8,0.002]
[1768020972642,0.97500166,3084.1,3082.8,0.002]
[1768020972945,8.66107468,3084.2,3082.2,0.12669032]
[1768020972946,0.97500166,3083.1,3082.2,0.12669032]
[1768020973104,0.03852968,3082.0,3081.9,0.002]
[1768020974804,0.97500166,3082.4,3081.9,0.002]
[1768020976001,0.255,3082.3,3081.9,0.94174487]
[1768020977122,1.13500166,3082.5,3081.1,0.002]
[1768020977295,1.13500166,3082.5,3080.9,1.97e-06]
[1768020977296,0.97500166,3081.3,3080.9,1.97e-06]
[1768020977498,0.00084242,3081.4,3080.9,0.7379945]
[1768020977701,0.00080744,3081.7,3080.8,0.002]
[1768020977702,0.00080744,3081.7,3081.3,0.90729736]
[1768020978393,0.00080744,3081.7,3081.1,0.90729736]
[1768020981834,0.00080744,3081.7,3081.0,0.00084326]
[1768020981835,5.305539,3081.4,3081.0,0.00084326]
[1768020982007,1.23000166,3081.3,3080.8,0.002]
[1768020982208,1.23000166,3081.3,3080.7,0.002]
[1768020982209,0.255,3081.3,3080.7,0.002]
[1768020982421,0.97500166,3081.2,3080.7,0.002]
[1768020982619,0.60511646,3081.3,3080.7,0.002]
[1768020982822,1.58011812,3081.3,3080.7,0.002]
[1768020983012,0.97500166,3081.2,3080.7,0.002]
[1768020983419,0.97500166,3081.2,3080.4,0.00080576]
[1768020983722,0.96721866,3081.0,3080.4,0.00080576]
[1768020984116,3.24615831,3081.4,3080.4,0.00080576]
[1768020984117,0.97500166,3081.3,3080.4,0.90810312]
[1768020984335,0.255,3081.0,3080.5,4.33053734]
[1768020984499,0.255,3081.0,3080.4,0.90810312]
[1768020984921,0.255,3081.0,3080.4,0.00080576]
[1768020985402,1.23000166,3081.0,3080.4,0.00080576]
[1768020986421,0.255,3081.0,3080.4,0.94056643]
[1768020986634,0.255,3081.3,3080.6,0.90729736]
[1768020987205,0.255,3081.3,3080.7,0.03446015]
[1768020987411,0.255,3081.3,3080.7,0.002]
[1768020987644,0.001,3081.0,3080.7,0.002]
[1768020988840,0.25584326,3081.4,3080.7,0.002]
[1768020989435,0.25584326,3081.4,3080.7,0.90929736]
[1768020990645,0.25584326,3081.4,3080.8,0.90729736]
[1768020990646,0.00084326,3081.4,3080.8,0.90729736]
[1768020991146,0.9758091,3081.7,3081.0,5.2378347]
[1768020991310,0.25580744,3081.7,3081.0,5.2386788]
[1768020991511,0.00080744,3081.7,3081.1,0.9397533]
[1768020991723,0.00080744,3081.7,3081.2,0.90729736]
[1768020991724,0.25580744,3081.7,3081.2,0.90729736]
[1768020991942,0.00080744,3081.7,3081.2,0.90729736]
[1768020992242,3.24450709,3082.2,3081.0,4.33138144]
[1768020992243,0.97500166,3082.2,3081.4,0.90729736]
[1768020992611,0.255,3082.3,3081.6,5.2378347]
[1768020992827,1.23000166,3082.4,3081.6,5.2378347]
[1768020993140,1.23000166,3082.4,3081.6,0.90729736]
[1768020993344,0.99879819,3082.3,3081.6,0.90729736]
[1768020995261,0.97366401,3082.9,3081.6,0.90729736]
[1768020995262,0.255,3082.6,3081.7,0.94814134]
[1768020995468,0.99879819,3082.5,3081.7,0.94814134]
[1768020996429,0.255,3082.6,3081.3,0.00080752]
[1768020996430,0.99879819,3082.2,3081.3,0.00080752]
[1768020996629,0.99879819,3082.0,3081.3,0.00080752]
[1768020999465,0.001,3081.7,3081.3,0.00080752]
[1768021002782,0.99879819,3082.3,3081.3,0.94894886]
[1768021003076,0.99879819,3082.1,3081.3,0.00080752]
[1768021006978,0.99879819,3082.1,3081.3,0.94894886]
[1768021008682,0.99879819,3082.5,3081.7,0.94814134]
[1768021008873,0.99879819,3082.4,3081.7,0.94814134]
[1768021009753,3.24393429,3082.7,3081.8,0.94814134]
[1768021009754,0.99879819,3082.6,3081.8,0.94814134]
[1768021009976,0.255,3082.5,3081.8,0.94814134]
[1768021010556,1.2242895,3082.5,3081.8,0.94814134]
[1768021011484,0.9692895,3082.8,3082.1,4.33765123]
[1768021011688,0.9692895,3082.8,3082.1,5.28016314]
[1768021013658,0.9692895,3082.7,3081.6,0.002]
[1768021013993,0.9692895,3082.1,3081.6,0.002]
[1768021014694,0.69868887,3082.0,3081.6,0.002]
[1768021014882,0.69868887,3081.9,3081.6,0.002]
[1768021015078,0.9692895,3082.1,3081.6,0.002]
[1768021015286,0.69868674,3082.0,3081.6,0.002]
[1768021015591,0.69868674,3081.9,3081.6,0.002]
[1768021015785,0.9692895,3082.1,3081.6,0.002]
[1768021015986,0.69896299,3082.0,3081.6,0.002]
[1768021016194,0.69896299,3081.9,3081.6,0.002]
[1768021016393,0.9692895,3082.1,3081.6,0.002]
[1768021016394,0.69896299,3081.8,3081.6,0.002]
[1768021016592,0.9692895,3082.1,3081.6,0.002]
[1768021016793,0.69922613,3082.0,3081.6,0.002]
[1768021016964,0.69922613,3081.9,3081.6,0.002]
[1768021017164,0.69922613,3081.8,3081.6,0.002]
[1768021017385,0.9692895,3082.1,3081.6,0.002]
[1768021017604,0.69944219,3082.0,3081.6,0.002]
[1768021017801,0.69944219,3081.9,3081.6,0.002]
[1768021017967,0.69944219,3081.8,3081.6,0.002]
[1768021018294,0.9692895,3082.1,3081.6,0.002]
[1768021018496,0.69969872,3082.0,3081.6,0.002]
[1768021018686,0.69969872,3081.9,3081.6,0.002]
[1768021018884,0.69969872,3081.8,3081.6,0.002]
[1768021019088,0.9692895,3082.1,3081.6,0.002]
[1768021019283,0.69970042,3082.0,3081.6,0.002]
[1768021019489,0.69970042,3081.9,3081.6,0.002]
[1768021019688,0.69970042,3081.8,3081.6,0.002]
[1768021019899,0.69970042,3081.7,3081.6,0.002]
[1768021022291,0.9692895,3082.2,3081.6,0.002]
[1768021022493,0.70045209,3082.1,3081.6,0.002]
[1768021022698,0.70045209,3082.0,3081.6,0.002]
[1768021022904,0.70045209,3081.9,3081.6,0.002]
[1768021023105,0.70045209,3081.8,3081.6,0.002]
[1768021023406,1.41939012,3082.2,3081.6,0.002]
[1768021023594,0.87113158,3082.1,3081.6,0.002]
[1768021023774,0.7004478,3082.0,3081.6,0.002]
[1768021023974,0.7004478,3081.9,3081.6,0.002]
[1768021024200,0.7004478,3081.8,3081.6,0.002]
[1768021024406,0.17068378,3082.1,3081.6,0.002]
[1768021024706,0.70044534,3082.0,3081.6,0.002]
[1768021024868,0.70044534,3081.9,3081.6,0.002]
[1768021025073,0.70044534,3081.8,3081.6,0.002]
[1768021025268,1.13493247,3082.1,3081.6,0.002]
[1768021025507,0.96424869,3081.9,3081.6,0.002]
[1768021025824,1.66470253,3081.8,3081.6,0.002]
[1768021025971,0.96424869,3081.8,3081.6,0.002]
[1768021026691,1.66467219,3081.7,3081.3,0.00280752]
[1768021026875,0.96424869,3081.7,3081.3,0.00280752]
[1768021027294,3.24456871,3082.1,3081.3,0.00280752]
[1768021027486,0.96424869,3081.9,3081.3,0.00280752]
[1768021027681,0.70038259,3081.8,3081.3,0.00280752]
[1768021029374,1.66463128,3081.8,3081.3,0.00280752]
[1768021029580,0.96424869,3081.8,3081.3,0.00280752]
[1768021035514,0.96424869,3081.8,3081.6,0.002]
[1768021035714,0.96424869,3081.8,3081.3,0.00280752]
[1768021037817,0.96424869,3082.3,3081.6,4.33809461]
[1768021037994,0.70012025,3082.2,3081.7,0.03244962]
[1768021038618,0.70012025,3082.2,3081.5,1.0304293]
[1768021043196,0.70012025,3082.1,3081.5,1.0304293]
[1768021043417,0.70012025,3082.0,3081.5,1.0304293]
[1768021043719,0.96424869,3082.3,3081.5,1.0304293]
[1768021043941,0.70093364,3082.2,3081.5,1.0304293]
[1768021044090,0.70093364,3082.1,3081.5,1.0304293]
[1768021044291,0.70093364,3082.0,3081.5,1.0304293]
[1768021044591,0.96424869,3082.3,3081.5,1.0304293]
[1768021044790,1.66521298,3082.2,3081.5,1.0304293]
[1768021045027,0.70096429,3082.1,3081.5,1.0304293]
[1768021047136,0.001,3081.9,3081.5,1.0304293]
[1768021050505,0.96424869,3081.5,3080.7,0.002]
[1768021050704,0.89545378,3081.1,3080.7,0.002]
[1768021050906,1.66486889,3081.0,3080.7,0.002]
[1768021051236,0.96424869,3081.0,3080.7,0.002]
[1768021051410,0.255,3081.3,3080.7,0.002]
[1768021051411,0.96424869,3081.3,3080.7,0.002]
[1768021051612,1.66429304,3081.2,3080.7,0.002]
[1768021051811,0.96424869,3081.2,3080.7,0.002]
[1768021052042,0.0008441,3081.4,3081.1,4.33809461]
[1768021052338,0.0008441,3081.4,3080.7,0.002]
[1768021052339,0.96509279,3081.4,3080.7,4.34009461]
[1768021052532,0.0008441,3081.4,3080.8,0.99797758]
[1768021055837,0.96474382,3081.4,3080.7,4.34009461]
[1768021056850,0.96474382,3081.4,3080.7,0.002]
[1768021057063,0.96474382,3081.4,3079.2,1.16463922]
[1768021057064,0.96389972,3080.1,3079.2,1.16463922]
[1768021057299,0.96389972,3080.1,3079.1,0.002]
[1768021057300,0.96389972,3080.1,3079.3,5.33342303]
[1768021057410,0.96389972,3080.1,3079.4,4.33809461]
[1768021057609,0.96389972,3080.1,3079.4,0.99532842]
[1768021058043,0.96389972,3080.1,3079.2,5.33342303]
[1768021058350,0.96389972,3080.1,3079.3,0.99532842]
[1768021059317,0.96389972,3080.1,3079.6,0.002]
[1768021060311,0.96389972,3079.9,3079.1,0.002]
[1768021060515,3.24675324,3080.0,3078.8,0.26911546]
[1768021060516,0.96389972,3079.7,3078.8,0.26911546]
[1768021062353,0.96389972,3079.5,3078.8,0.26911546]
[1768021062546,0.255,3079.8,3078.9,0.99532842]
[1768021062547,0.96389972,3079.8,3078.9,0.99532842]
[1768021062726,0.00080632,3080.2,3078.9,0.99532842]
[1768021062727,3.50186058,3079.9,3078.9,0.99532842]
[1768021062926,4.4657603,3079.9,3078.9,0.99532842]
[1768021063314,4.4657603,3079.9,3079.0,0.99532842]
[1768021063752,0.96389972,3079.8,3079.0,0.99532842]
[1768021065936,0.00080632,3080.2,3079.1,0.99532842]
[1768021067157,0.00080632,3080.2,3079.3,0.99532842]
[1768021067342,0.00080632,3080.2,3079.4,0.99532842]
[1768021067647,3.2458369,3080.9,3079.4,0.99532842]
[1768021067648,0.96389972,3081.5,3080.4,0.07135791]
[1768021067852,4.25065131,3081.4,3080.4,0.99532842]
[1768021068054,0.96389972,3081.3,3080.4,0.99532842]
[1768021068549,0.04141007,3081.4,3080.4,0.99532842]
[1768021068846,0.96389972,3081.3,3080.4,0.99532842]
[1768021069246,0.96389972,3081.3,3080.4,4.24157439]
[1768021069951,0.96389972,3081.3,3080.4,7.48790603]
[1768021070152,0.9890814,3081.3,3080.5,0.07135791]
[1768021071348,0.9890814,3081.3,3080.6,3.24612088]
[1768021071850,0.0008441,3081.4,3080.6,4.18006401]
[1768021074366,0.9899255,3081.4,3080.6,4.18006401]
[1768021074742,0.9899255,3081.4,3080.6,0.93394313]
[1768021075655,0.9899255,3081.4,3080.6,4.18005634]
[1768021078735,0.9899255,3081.4,3080.5,3.24621123]
[1768021079164,0.9899255,3081.4,3080.5,4.18015436]
[1768021081125,0.9899255,3081.4,3080.6,0.93394313]
[1768021081951,0.0008441,3081.4,3080.6,1.00530104]
[1768021082251,0.0008441,3081.4,3080.8,1.00530104]
[1768021082454,0.0008441,3081.4,3081.0,0.93394313]
[1768021083027,0.0008441,3081.4,3081.2,0.93394313]
[1768021087155,0.00080752,3081.7,3081.1,3.2455941]
[1768021087337,0.91958794,3081.6,3081.1,3.2455941]
[1768021088661,0.91958794,3081.6,3081.2,3.24545655]
[1768021089357,0.00080752,3081.7,3081.2,3.24545655]
[1768021089559,0.00080752,3081.7,3081.3,0.9568345]
[1768021091458,0.00080752,3081.7,3081.4,3.24527812]
[1768021094327,0.00080752,3081.7,3081.4,4.20211262]
[1768021096539,0.00080752,3081.7,3081.4,4.20411262]
[1768021098462,0.92058794,3081.9,3081.4,3.24727812]
[1768021098838,0.001,3081.9,3081.5,0.9568345]
[1768021099566,0.001,3081.9,3081.5,4.20199737]
[1768021099935,0.001,3081.9,3081.5,0.9568345]
[1768021102472,0.001,3081.9,3081.0,4.41097861]
[1768021102473,0.91958794,3080.7,3079.3,4.08066426]
[1768021102676,0.00080584,3080.8,3079.1,3.24762769]
[1768021102677,0.92039434,3080.2,3079.1,3.24762769]
[1768021102838,0.92039434,3080.2,3079.3,0.9568345]
[1768021105138,0.92039434,3080.2,3079.4,0.9568345]
[1768021105139,0.0008064,3080.2,3079.4,0.9568345]
[1768021105970,0.0008064,3080.2,3079.5,0.9568345]
[1768021108046,0.0008064,3080.2,3079.6,3.24717495]
[1768021108254,0.0008064,3080.2,3079.6,4.20400945]
[1768021108456,0.0008064,3080.2,3068.5,0.071]
[1768021108457,0.91958794,3080.1,3078.2,0.00080688]
[1768021108655,0.0008064,3080.2,3078.8,0.26911546]
[1768021108656,0.91958794,3079.9,3078.8,0.26911546]
[1768021110766,4.16655202,3079.8,3078.8,1.22594996]
[1768021110968,3.24696408,3079.8,3078.8,1.22594996]
[1768021111272,4.16655202,3079.8,3078.8,1.22594996]
[1768021111662,4.16655202,3079.8,3078.8,0.26911546]
[1768021111875,0.91958794,3079.6,3078.8,0.26911546]
[1768021116185,4.16677083,3079.6,3078.8,0.26911546]
[1768021117587,4.16677083,3079.6,3078.8,1.2689513]
[1768021117955,3.24718289,3079.6,3078.8,1.2689513]
[1768021118792,0.95922298,3079.6,3078.8,0.26911546]
[1768021118970,0.95922298,3080.0,3078.9,0.99983584]
[1768021119167,3.24736167,3080.2,3078.9,0.99983584]
[1768021119370,0.04058309,3080.1,3078.9,0.99983584]
[1768021119559,4.24715525,3080.2,3079.1,0.99983584]
[1768021119758,0.95922298,3080.1,3079.2,0.99983584]
[1768021119990,0.04058441,3080.0,3079.3,0.255]
[1768021123859,0.04058441,3080.0,3079.3,3.50248264]
[1768021124594,0.95922298,3080.1,3079.4,0.99983584]
[1768021125993,0.99980739,3080.0,3079.3,0.255]
[1768021127484,0.99980739,3080.0,3079.3,3.50248433]
[1768021127684,0.99980739,3080.0,3079.3,4.50232017]
[1768021128202,0.96002938,3080.2,3079.3,4.50232017]
[1768021129402,0.96002938,3080.2,3079.4,0.99983584]
[1768021129698,0.96002938,3080.2,3079.3,3.50248433]
[1768021129904,0.99980607,3080.1,3079.3,4.50232017]
[1768021130104,0.95922298,3080.1,3079.3,4.50232017]
[1768021130808,0.04058441,3080.0,3079.3,1.25483584]
[1768021131672,0.04058441,3080.0,3079.4,0.99403821]
[1768021131872,0.0008064,3080.2,3079.4,0.99403821]
[1768021132108,1.67770128,3080.2,3079.5,0.99403821]
[1768021132305,0.69725156,3080.1,3079.5,0.99403821]
[1768021132503,0.69725156,3080.0,3079.5,0.99403821]
[1768021132807,0.69725156,3079.9,3079.5,0.99403821]
[1768021133002,0.98044972,3080.2,3079.5,0.99403821]
[1768021133188,0.69868066,3080.1,3079.5,0.99403821]
[1768021133389,0.69868066,3080.0,3079.5,0.99403821]
[1768021133710,0.69868066,3079.9,3079.5,0.99403821]
[1768021133913,1.40719983,3080.2,3079.5,0.99403821]
[1768021134079,0.69873697,3080.1,3079.5,0.99403821]
[1768021134410,0.69873697,3080.0,3079.5,0.99403821]
[1768021134605,0.001,3079.7,3079.5,0.99403821]
[1768021138603,0.001,3079.7,3079.3,4.49648522]
[1768021138807,0.001,3079.7,3079.4,3.24737714]
[1768021141618,0.0008064,3080.2,3079.4,3.24737714]
[1768021141619,0.0008064,3080.2,3079.5,0.99403821]
[1768021141781,0.0008064,3080.2,3079.6,0.99403821]
[1768021142509,0.98044972,3080.2,3079.5,4.34282698]
[1768021142709,0.98044972,3080.2,3079.4,7.4888012]
[1768021146612,0.001,3079.9,3079.4,7.4888012]
[1768021146827,0.001,3079.9,3079.5,0.91981156]
[1768021148524,0.001,3079.9,3079.6,3.24717495]
[1768021152700,0.001,3079.9,3079.6,4.16698651]
[1768021153300,0.001,3079.9,3079.7,0.91981156]
[1768021153522,0.0008064,3080.2,3079.8,1.17481156]
[1768021154417,0.0008064,3080.2,3079.8,0.255]
[1768021155224,0.0008064,3080.2,3079.8,1.17481156]
[1768021155424,0.0008064,3080.2,3079.9,0.91981156]
[1768021156514,0.0008064,3080.2,3079.8,3.50193572]
[1768021157335,0.0008064,3080.2,3078.9,3.24784234]
[1768021157336,0.99815421,3079.8,3078.9,3.24784234]
[1768021157502,0.99815421,3079.8,3079.2,0.255]
[1768021157701,0.99815421,3079.7,3079.2,0.255]
[1768021157901,0.68672704,3079.6,3079.2,0.255]
[1768021158141,0.99815421,3079.5,3079.2,0.255]
[1768021167934,3.82169018,3079.8,3079.2,0.255]
[1768021168142,1.68482144,3079.7,3079.2,0.255]
[1768021168440,1.54890537,3079.7,3079.2,0.255]
[1768021169341,1.54890537,3079.7,3078.2,3.32277873]
[1768021169342,0.99815421,3079.5,3078.0,5.26463854]
[1768021169564,0.00080688,3078.6,3078.5,0.91981156]
[1768021170541,0.00080688,3078.6,3078.3,4.16831129]
[1768021170736,0.00080688,3078.6,3078.3,0.91981156]
[1768021171242,0.8380904,3078.6,3078.0,0.002]
[1768021171419,0.32594122,3078.8,3078.4,0.255]
[1768021171834,0.00085082,3078.8,3078.4,0.255]
[1768021172233,0.3250904,3078.7,3078.2,0.00080696]
[1768021172451,0.00085082,3078.8,3078.5,0.255]
[1768021176017,0.3250904,3079.0,3078.5,0.255]
[1768021177342,0.36568272,3079.4,3078.5,0.255]
[1768021177544,0.3250904,3079.2,3078.5,0.255]
[1768021177721,0.3250904,3079.2,3078.5,1.17375294]
[1768021178055,0.04059627,3079.1,3078.5,1.17375294]
[1768021178855,0.79558314,3079.3,3078.6,0.91875294]
[1768021179337,0.04059495,3079.2,3078.6,0.91875294]
[1768021180463,0.04059495,3079.2,3078.5,1.17375294]
[1768021180642,0.3250904,3079.7,3078.6,0.91875294]
[1768021180945,0.68557783,3079.6,3078.6,0.91875294]
[1768021181539,1.01066823,3079.6,3078.6,0.91875294]
[1768021181862,0.3250904,3079.6,3078.6,0.91875294]
[1768021182273,0.04058836,3079.7,3078.8,0.91875294]
[1768021182430,6.7650904,3079.8,3079.0,0.91875294]
[1768021182431,6.44,3079.8,3079.0,0.91875294]
[1768021182631,0.001,3079.3,3079.2,0.91875294]
[1768021183653,0.04058836,3079.7,3079.3,0.91875294]
[1768021188170,6.44,3079.8,3079.3,0.91875294]
[1768021188360,0.04058836,3079.7,3079.3,0.91875294]
[1768021189268,0.04058705,3079.8,3079.3,0.91875294]
[1768021190132,6.441,3079.9,3079.3,0.91875294]
[1768021190329,0.68811294,3079.8,3079.3,0.91875294]
[1768021191138,0.68811294,3079.8,3079.4,0.95858103]
[1768021191667,6.441,3079.9,3079.4,0.95858103]
[1768021194678,6.441,3079.9,3079.5,0.95858103]
[1768021194880,6.441,3079.9,3079.6,1.21358103]
[1768021199575,6.441,3079.9,3079.7,0.95858103]
[1768021200245,0.001,3079.9,3079.7,0.95858103]
[1768021200947,0.001,3079.9,3079.7,0.90858103]
[1768021201576,0.001,3079.9,3079.6,1.21358103]
[1768021202158,0.001,3079.9,3079.7,0.95858103]
[1768021205675,0.001,3079.9,3079.7,4.20562506]
[1768021205877,0.001,3079.9,3079.7,0.95858103]
[1768021207078,0.3750904,3080.6,3079.8,0.00080648]
[1768021207252,0.3750904,3080.4,3079.8,0.00080648]
[1768021207578,0.3750904,3080.2,3079.8,0.00080648]
[1768021207879,0.37589688,3080.2,3079.6,3.50212537]
[1768021208457,0.37589688,3080.2,3079.7,3.24705877]
[1768021208657,0.37589688,3080.2,3079.7,3.24705456]
[1768021209056,0.68838644,3080.1,3079.7,3.24705456]